bitfinex/quotes_ETHUSD_20260108
["timestamp","ask_amount","ask_price","bid_price","bid_amount"]
[1767914215965,4.18153395,3119.1,3118.3,0.90331768]
[1767914216279,4.18153395,3119.1,3118.4,0.73172744]
[1767914218373,3.20606731,3119.1,3118.4,4.8417966]
[1767914218574,3.20606731,3119.1,3118.5,0.90331768]
[1767914219604,0.002,3118.8,3118.5,0.90331768]
[1767914220301,3.20774469,3119.4,3118.8,0.90331768]
[1767914220501,0.002,3119.6,3119.0,0.90331768]
[1767914221190,0.002,3119.7,3119.4,0.90331768]
[1767914222573,0.002,3119.7,3119.2,1.75499477]
[1767914224407,0.002,3119.7,3119.2,2.25109337]
[1767914227675,0.002,3119.7,3119.0,0.93744516]
[1767914227881,0.002,3119.7,3119.1,0.841]
[1767914228309,0.002,3119.7,3119.1,1.77844516]
[1767914228611,0.002,3119.7,3119.1,4.98448303]
[1767914229483,0.002,3119.7,3119.2,0.93744516]
[1767914231306,0.002,3119.7,3119.1,0.841]
[1767914231510,0.002,3119.7,3119.1,2.01628968]
[1767914231876,0.002,3119.7,3119.5,0.001]
[1767914238993,0.002,3119.7,3119.5,0.93844516]
[1767914243902,0.002,3120.0,3119.7,0.93744516]
[1767914245324,0.002,3120.4,3119.9,3.81610342]
[1767914245621,0.002,3120.4,3120.1,0.93744516]
[1767914245808,3.20672356,3120.4,3120.1,0.93744516]
[1767914246012,0.002,3120.4,3120.1,0.93744516]
[1767914250733,0.002,3120.7,3120.3,0.93744516]
[1767914251303,0.002,3120.7,3120.3,1.3190555]
[1767914252129,0.002,3120.7,3120.4,0.93744516]
[1767914254932,0.002,3120.7,3120.3,0.38161034]
[1767914255104,0.002,3120.7,3120.2,0.91642345]
[1767914261643,0.91265264,3120.7,3120.2,0.841]
[1767914261842,2.87865826,3120.5,3119.8,0.91642345]
[1767914262135,0.91265264,3120.7,3119.8,0.91642345]
[1767914262552,3.20451195,3120.6,3119.9,0.91642345]
[1767914262716,0.91065264,3120.5,3119.7,0.91642345]
[1767914262924,0.91065264,3120.5,3120.0,3.1]
[1767914263740,0.91065264,3120.5,3119.8,0.91642345]
[1767914264641,0.91065264,3120.5,3119.8,4.12174731]
[1767914264941,3.20451195,3120.6,3119.9,0.91642345]
[1767914265145,4.11516459,3120.6,3119.9,0.91642345]
[1767914266548,4.11516459,3120.6,3120.1,0.001]
[1767914267210,3.20451195,3120.6,3120.1,0.001]
[1767914267540,3.20451195,3120.6,3120.1,0.91742345]
[1767914267904,3.20644402,3120.7,3120.1,0.91742345]
[1767914268105,0.002,3120.7,3120.2,0.91642345]
[1767914268309,3.20643645,3120.7,3120.1,0.001]
[1767914269744,0.002,3120.7,3120.1,3.79608171]
[1767914271144,0.002,3120.7,3120.4,0.91642345]
[1767914277482,0.002,3120.7,3120.1,1.61754216]
[1767914277629,0.002,3120.7,3120.1,0.91742345]
[1767914278120,0.002,3120.4,3120.1,0.91742345]
[1767914282465,0.002,3120.4,3120.1,4.12244305]
[1767914282655,0.002,3120.4,3120.2,0.99766382]
[1767914286688,0.002,3120.4,3120.1,0.001]
[1767914288204,0.002,3120.4,3120.1,0.99866382]
[1767914292002,0.002,3120.4,3120.1,0.001]
[1767914299190,0.002,3120.7,3120.2,0.98945563]
[1767914299479,0.002,3120.7,3120.2,3.86811389]
[1767914299684,0.002,3120.7,3120.2,4.46811389]
[1767914302174,0.002,3120.7,3120.3,0.98945563]
[1767914305480,0.002,3120.7,3120.1,4.19547387]
[1767914305694,0.002,3120.7,3120.2,0.70729134]
[1767914307231,0.002,3120.7,3120.3,0.6]
[1767914307901,0.002,3120.7,3120.2,0.70729134]
[1767914310834,0.002,3120.7,3120.2,1.69674697]
[1767914312237,0.002,3120.4,3120.2,1.69674697]
[1767914312530,0.002,3120.7,3120.3,0.49027652]
[1767914314242,3.2058157,3121.3,3120.6,0.96424598]
[1767914314243,3.2058175,3121.3,3120.6,0.96424598]
[1767914314409,0.97691161,3121.2,3120.4,0.96424598]
[1767914314831,0.97691161,3121.2,3120.3,9.77731177]
[1767914314832,0.97491161,3121.1,3120.3,0.49027652]
[1767914315138,0.97491161,3121.1,3120.4,0.53666975]
[1767914316858,4.17901285,3121.0,3120.4,0.53666975]
[1767914320979,3.20410124,3121.0,3120.4,0.53666975]
[1767914322454,3.2040489,3121.1,3120.5,0.96424598]
[1767914324491,3.2040489,3121.1,3120.7,0.001]
[1767914325185,6.40979186,3121.2,3120.7,0.001]
[1767914325482,7.38470347,3121.2,3120.7,0.001]
[1767914329694,8.12506008,3121.2,3120.7,0.001]
[1767914331098,0.002,3121.2,3120.7,0.96524598]
[1767914331401,3.20591063,3121.2,3120.7,0.96524598]
[1767914332393,0.002,3121.2,3120.7,0.96524598]
[1767914332698,0.97691161,3121.2,3120.7,0.001]
[1767914335109,7.38290879,3121.1,3120.7,0.001]
[1767914335294,1.71340249,3121.0,3120.7,0.001]
[1767914337213,3.20420391,3120.9,3120.7,0.001]
[1767914338231,6.40840782,3120.9,3120.7,0.001]
[1767914338529,3.20420391,3120.9,3120.7,0.001]
[1767914339937,3.94264601,3121.0,3120.7,0.001]
[1767914342735,4.04694986,3121.2,3120.7,0.9151334]
[1767914343337,7.25089972,3121.2,3120.7,0.9151334]
[1767914346834,8.24897375,3121.2,3120.7,0.001]
[1767914347330,0.99807403,3121.0,3120.1,0.91482092]
[1767914347527,0.99807403,3120.8,3120.1,0.91482092]
[1767914347727,7.25089972,3121.2,3120.2,0.91382092]
[1767914347947,0.72528997,3121.1,3120.2,0.91382092]
[1767914348315,0.72528997,3121.1,3121.0,0.001]
[1767914348510,0.72528997,3121.1,3120.5,0.91382092]
[1767914348732,7.25089972,3121.2,3120.5,0.91382092]
[1767914356242,10.45484958,3121.2,3120.5,0.91382092]
[1767914357468,0.99807403,3121.1,3120.2,0.91382092]
[1767914358730,10.45484958,3121.2,3120.2,0.91382092]
[1767914359674,11.45292361,3121.2,3120.2,0.91382092]
[1767914359965,1.14549236,3121.1,3120.5,0.001]
[1767914360171,0.002,3120.9,3120.5,0.001]
[1767914367494,0.002,3120.9,3120.2,0.91382092]
[1767914368176,0.002,3120.9,3120.3,0.6]
[1767914368899,0.002,3120.9,3120.4,0.91382092]
[1767914369096,3.20440926,3120.7,3120.4,0.91382092]
[1767914371022,6.40881852,3120.7,3120.2,0.91382092]
[1767914371176,3.20440926,3120.7,3120.2,0.91382092]
[1767914383545,3.20440926,3120.7,3120.5,0.001]
[1767914383845,4.1331779,3120.8,3120.5,0.001]
[1767914384570,3.20435831,3120.8,3120.5,0.9393344]
[1767914385199,3.20435831,3120.8,3120.1,0.001]
[1767914385200,10.20354429,3120.8,3120.1,0.001]
[1767914385403,6.99918598,3120.8,3120.1,0.9393344]
[1767914385643,6.41048394,3120.9,3120.1,0.9393344]
[1767914385940,1.02053116,3120.8,3120.1,0.9393344]
[1767914386251,3.20624197,3120.9,3120.2,0.9383344]
[1767914387242,6.41048394,3120.9,3120.2,0.9383344]
[1767914388036,0.002,3120.9,3120.2,0.9383344]
[1767914393726,0.002,3120.9,3120.4,3.5]
[1767914395342,2.87799344,3120.7,3120.1,0.001]
[1767914395546,0.28779934,3120.6,3120.1,0.001]
[1767914396047,0.28779934,3120.6,3120.5,0.001]
[1767914396346,0.28979934,3120.6,3120.1,0.001]
[1767914396547,3.20651195,3120.6,3120.1,0.001]
[1767914397731,6.4110239,3120.6,3120.1,0.001]
[1767914400443,2.87799344,3120.5,3120.1,0.001]
[1767914401059,2.87799344,3120.5,3119.6,3.20553248]
[1767914401060,3.79482767,3120.3,3119.6,0.9383344]
[1767914401367,2.87799344,3120.0,3119.5,0.9393344]
[1767914401720,3.25747621,3120.2,3119.5,0.9393344]
[1767914402560,6.41005094,3120.1,3119.5,0.9393344]
[1767914406551,0.91424406,3120.0,3119.5,0.001]
[1767914406723,0.7324295,3119.9,3119.5,0.001]
[1767914406923,0.91424406,3120.0,3119.5,0.001]
[1767914407256,6.41005094,3120.1,3119.5,0.001]
[1767914408128,6.41005094,3120.1,3119.8,0.001]
[1767914408325,0.91424406,3120.0,3119.5,0.001]
[1767914409450,6.41005094,3120.1,3119.5,0.001]
[1767914409748,1.05085272,3120.0,3119.5,0.001]
[1767914410252,0.91424406,3119.9,3119.5,0.001]
[1767914410439,0.91424406,3119.9,3118.3,3.20782458]
[1767914410440,2.87799344,3119.0,3118.3,3.20782458]
[1767914410640,0.841,3119.3,3118.6,0.90457304]
[1767914411555,6.41190048,3119.2,3118.6,0.90457304]
[1767914412125,2.87799344,3119.0,3118.4,0.90457304]
[1767914412329,7.51641428,3119.2,3118.4,0.90457304]
[1767914417664,3.20595024,3119.2,3118.5,0.90457304]
[1767914417959,7.25290048,3119.2,3118.7,0.90457304]
[1767914419865,7.25290048,3119.2,3119.0,0.001]
[1767914420054,7.25290048,3119.2,3118.7,0.90457304]
[1767914420943,4.04695024,3119.2,3118.7,0.90457304]
[1767914421278,0.841,3119.7,3119.1,0.90457304]
[1767914422659,6.41107834,3119.6,3118.8,0.90457304]
[1767914423500,3.20520801,3120.0,3119.4,0.90457304]
[1767914423649,3.20520801,3120.0,3119.4,0.88419181]
[1767914424044,2.87799344,3119.9,3119.1,0.90457304]
[1767914424266,0.91424406,3119.6,3118.7,3.58467998]
[1767914424580,3.20564192,3119.5,3118.7,4.48925302]
[1767914424879,3.20564192,3119.5,3118.7,0.37825665]
[1767914424880,0.91424406,3119.4,3118.7,0.37825665]
[1767914425076,0.91424406,3119.2,3118.3,0.90557304]
[1767914426144,0.91424406,3119.2,3118.4,0.90457304]
[1767914427373,0.91424406,3119.0,3118.3,0.001]
[1767914430274,4.12050267,3118.9,3118.3,0.001]
[1767914431560,4.12050267,3118.9,3118.6,0.001]
[1767914431959,0.91424406,3118.9,3118.6,0.001]
[1767914432561,4.12051455,3118.9,3118.6,0.001]
[1767914432961,0.91424406,3118.9,3118.6,0.001]
[1767914433182,4.12051854,3118.9,3118.6,0.001]
[1767914434153,0.91424406,3118.9,3118.6,0.001]
[1767914435864,4.12051472,3118.9,3118.6,0.001]
[1767914436179,0.91424406,3118.9,3118.6,0.001]
[1767914437371,4.12053959,3118.9,3118.6,0.001]
[1767914437685,4.93730011,3118.9,3118.6,0.001]
[1767914443965,8.14359564,3118.9,3118.3,0.001]
[1767914445087,1.73100458,3118.9,3118.3,0.001]
[1767914445788,3.20622178,3119.0,3118.3,0.9136364]
[1767914445987,4.04722178,3119.0,3118.3,0.9136364]
[1767914447191,7.25342545,3119.0,3118.3,0.9136364]
[1767914447361,0.90962122,3118.9,3118.3,0.001]
[1767914448419,4.95682489,3119.0,3118.3,0.001]
[1767914450087,4.95682489,3119.0,3118.3,0.9136364]
[1767914455121,4.04720367,3119.0,3118.4,0.9126364]
[1767914455316,3.20607145,3119.1,3118.4,0.9126364]
[1767914455496,4.04707145,3119.1,3118.4,0.9126364]
[1767914455687,4.04707145,3119.1,3118.6,0.001]
[1767914456009,0.002,3118.7,3118.6,0.001]
[1767914460323,0.002,3118.7,3118.6,0.9136364]
[1767914463109,0.002,3119.0,3118.6,0.9136364]
[1767914465787,0.002,3119.0,3118.7,0.9973284]
[1767914470527,0.002,3119.0,3118.6,0.41303884]
[1767914471403,0.002,3119.0,3118.6,1.33510936]
[1767914472097,0.002,3119.0,3118.6,0.92307052]
[1767914473109,0.002,3119.0,3118.6,0.001]
[1767914475629,0.002,3119.0,3118.6,0.92307052]
[1767914476130,4.04877978,3119.4,3119.0,0.92207052]
[1767914476131,0.002,3119.4,3119.0,0.92207052]
[1767914480735,0.002,3119.1,3118.8,0.92207052]
[1767914480918,0.002,3119.1,3118.9,0.41284975]
[1767914481234,0.002,3119.1,3118.8,0.92207052]
[1767914481630,0.002,3119.1,3118.6,4.12962046]
[1767914481832,0.002,3119.1,3118.6,0.001]
[1767914488125,0.98952315,3119.1,3118.6,0.001]
[1767914488647,2.88151061,3118.7,3118.3,0.001]
[1767914488941,0.38690338,3118.6,3118.3,0.001]
[1767914489239,0.98752315,3118.8,3118.3,0.001]
[1767914491053,3.20646423,3118.7,3118.3,0.001]
[1767914491957,4.1939183,3118.8,3118.3,0.001]
[1767914492155,3.20639515,3118.8,3118.3,0.001]
[1767914493141,3.20625861,3118.9,3118.6,0.001]
[1767914493329,0.73999598,3118.8,3118.6,0.001]
[1767914495863,3.20625861,3118.9,3118.6,0.001]
[1767914496969,4.04725861,3118.9,3118.6,0.001]
[1767914501769,0.002,3119.1,3118.6,0.95443943]
[1767914502142,3.20812986,3119.1,3118.6,0.95443943]
[1767914504162,0.002,3119.1,3118.6,0.95443943]
[1767914505069,0.002,3118.9,3118.6,0.95443943]
[1767914515371,0.002,3118.9,3118.6,0.001]
[1767914515667,0.29055106,3118.9,3118.6,0.001]
[1767914515867,3.49680976,3118.9,3118.6,0.001]
[1767914516270,3.49680976,3118.9,3118.6,0.95443943]
[1767914519880,0.29055106,3118.9,3118.6,0.95443943]
[1767914520087,0.002,3118.9,3118.6,0.95443943]
[1767914539496,0.002,3118.9,3118.6,0.90394594]
[1767914551316,0.002,3119.1,3118.9,0.90294594]
[1767914551522,0.002,3119.4,3119.0,0.90294594]
[1767914551693,0.002,3119.4,3119.2,1.07020254]
[1767914552182,0.002,3119.4,3119.2,0.1672566]
[1767914555802,0.002,3119.4,3119.2,1.11199509]
[1767914556395,0.002,3119.4,3119.2,0.1672566]
[1767914557524,0.002,3119.4,3119.0,0.94473849]
[1767914557689,0.002,3119.4,3119.0,1.35984822]
[1767914557890,0.002,3119.4,3119.1,0.94473849]
[1767914560120,0.002,3119.4,3118.8,0.94473849]
[1767914560836,0.002,3119.7,3119.4,0.94473849]
[1767914566630,0.002,3119.7,3119.4,1.35980697]
[1767914568232,0.002,3119.7,3119.4,0.94473849]
[1767914570335,0.002,3119.7,3119.1,0.94473849]
[1767914573638,0.002,3119.7,3119.0,0.94473849]
[1767914573939,0.002,3119.7,3119.1,0.94473849]
[1767914575858,0.002,3119.7,3119.4,0.001]
[1767914576100,0.002,3119.7,3119.2,0.94473849]
[1767914582230,0.002,3119.7,3119.0,4.15088904]
[1767914582431,0.002,3119.7,3119.1,0.4150889]
[1767914582823,0.002,3119.7,3119.1,1.37937399]
[1767914583646,0.002,3119.7,3119.2,0.96428509]
[1767914586402,0.002,3119.7,3119.2,4.17020705]
[1767914586570,0.002,3119.7,3119.2,0.96428509]
[1767914587984,0.002,3119.7,3119.4,0.001]
[1767914641481,0.90729284,3119.7,3119.4,0.001]
[1767914641784,0.41126336,3119.6,3119.4,0.001]
[1767914642313,0.002,3119.7,3119.4,0.001]
[1767914644217,0.002,3119.7,3119.5,0.92529937]
[1767914645817,0.002,3119.7,3119.4,0.001]
[1767914646420,0.002,3119.7,3119.5,0.98699726]
[1767914646719,0.843,3120.2,3119.5,0.98699726]
[1767914646914,5.16835392,3120.2,3119.5,0.98699726]
[1767914647289,0.94169397,3120.1,3119.5,3.20563597]
[1767914647492,0.843,3120.2,3119.6,0.98699726]
[1767914648203,1.78469397,3120.2,3119.5,3.20563597]
[1767914648703,0.002,3119.9,3119.5,3.20563597]
[1767914648905,0.002,3119.9,3119.6,0.70733072]
[1767914654727,0.002,3119.9,3119.6,1.69432798]
[1767914655728,0.002,3119.9,3119.6,0.70733072]
[1767914656032,0.002,3119.9,3119.4,7.07336855]
[1767914656391,0.002,3119.9,3119.6,3.86667118]
[1767914656637,0.843,3120.2,3119.6,0.98699726]
[1767914658201,4.04796208,3120.2,3119.6,0.98699726]
[1767914658635,0.002,3120.2,3119.7,0.98699726]
[1767914658931,0.002,3120.2,3119.8,1.6942183]
[1767914660228,0.002,3119.9,3119.8,1.6942183]
[1767914663337,0.002,3120.2,3119.8,4.89954998]
[1767914664001,0.002,3120.2,3119.9,0.98699726]
[1767914665541,0.002,3120.2,3119.9,4.1921864]
[1767914665830,0.002,3120.2,3119.9,5.00266031]
[1767914666636,0.002,3120.2,3120.0,0.98699726]
[1767914669710,0.002,3120.2,3119.7,4.19235078]
[1767914670036,0.002,3120.2,3119.8,4.19231042]
[1767914671815,0.002,3119.9,3119.8,4.19231042]
[1767914672014,0.002,3119.9,3119.8,4.93209467]
[1767914673008,0.002,3119.9,3119.8,1.72678151]
[1767914673214,0.002,3119.9,3119.8,0.73978425]
[1767914676351,0.002,3119.9,3119.6,4.1553587]
[1767914676741,0.002,3119.9,3119.7,3.2054201]
[1767914677431,0.002,3119.9,3119.4,0.001]
[1767914677638,0.002,3119.9,3119.4,3.20664874]
[1767914682964,0.002,3119.9,3119.4,0.95087559]
[1767914683164,0.002,3119.9,3119.7,0.001]
[1767914683932,0.9249781,3119.9,3119.1,4.13100904]
[1767914684157,0.9229781,3119.8,3119.1,3.20603094]
[1767914684335,0.9229781,3119.8,3119.1,4.15590653]
[1767914684835,1.02336506,3119.9,3119.1,4.15590653]
[1767914687038,1.94634316,3119.9,3119.1,4.15590653]
[1767914687546,5.15159151,3119.9,3119.1,4.15590653]
[1767914687762,1.12353625,3119.8,3119.1,4.15590653]
[1767914689568,0.9229781,3119.6,3118.9,0.94987559]
[1767914689770,0.9229781,3119.6,3118.7,0.94987559]
[1767914690871,0.9229781,3119.3,3118.6,0.001]
[1767914691474,7.33509456,3119.1,3118.6,0.001]
[1767914691666,0.9229781,3119.0,3118.3,0.001]
[1767914691969,1.9443492,3118.9,3118.3,0.001]
[1767914692152,0.9229781,3118.8,3118.3,0.001]
[1767914692350,0.9229781,3118.6,3118.3,0.001]
[1767914693087,0.841,3118.7,3118.3,0.001]
[1767914694757,0.841,3118.7,3118.6,0.001]
[1767914694958,1.44016325,3118.7,3118.3,0.001]
[1767914695158,0.841,3118.7,3118.3,0.001]
[1767914697980,4.04748604,3118.7,3118.3,0.001]
[1767914698384,4.04748604,3118.7,3118.1,0.94987559]
[1767914701393,4.04748604,3118.7,3117.9,0.94987559]
[1767914701659,0.81768557,3118.6,3117.9,0.94987559]
[1767914702192,1.74066367,3118.6,3117.9,0.94987559]
[1767914702393,3.20666987,3118.5,3117.9,0.94987559]
[1767914702755,4.15276278,3118.5,3117.8,0.001]
[1767914703591,4.15276278,3118.5,3117.8,0.92854949]
[1767914703890,5.05456454,3118.5,3117.8,0.92854949]
[1767914705902,5.05456454,3118.5,3117.8,0.001]
[1767914706477,8.26123441,3118.5,3118.1,0.001]
[1767914706674,0.90228638,3118.4,3117.8,0.001]
[1767914706990,1.10960443,3118.3,3117.5,0.92094081]
[1767914707909,3.20697838,3118.2,3117.6,0.92094081]
[1767914710410,3.20697838,3118.2,3117.4,3.20774102]
[1767914710411,7.31624314,3118.2,3117.4,0.92094081]
[1767914710703,0.90228638,3118.1,3117.2,5.0913486]
[1767914711092,0.90228638,3118.1,3117.3,3.20788749]
[1767914711286,0.90228638,3118.0,3117.2,1.88337538]
[1767914711487,0.90028639,3118.0,3117.2,1.88337538]
[1767914712213,0.90028639,3118.0,3117.2,5.09137545]
[1767914712377,4.10749741,3118.0,3117.2,5.09137545]
[1767914713109,4.10749741,3118.0,3117.3,0.92094081]
[1767914713996,1.2146464,3118.1,3117.3,0.92094081]
[1767914714177,1.74428638,3118.2,3117.3,0.92094081]
[1767914714807,1.74428638,3118.2,3117.2,4.17043464]
[1767914714808,0.90228638,3118.0,3117.2,0.96243457]
[1767914715008,0.90228638,3117.9,3117.1,0.92094081]
[1767914715220,9.62138778,3118.1,3116.9,1.88348963]
[1767914715221,0.90228638,3117.7,3116.9,1.88348963]
[1767914715516,2.12237666,3117.7,3116.9,0.92094081]
[1767914716219,0.90228638,3117.6,3116.8,0.96458897]
[1767914716400,0.90228638,3117.6,3116.8,0.002]
[1767914716797,4.10993157,3117.6,3116.8,0.92294081]
[1767914717198,4.42759083,3117.7,3116.8,0.92294081]
[1767914717515,0.842,3117.7,3116.9,0.92094081]
[1767914717921,0.842,3117.7,3117.2,0.001]
[1767914718126,0.842,3117.7,3117.3,0.92094081]
[1767914721217,0.842,3117.7,3117.2,0.001]
[1767914721522,4.04949282,3117.7,3117.2,0.001]
[1767914721837,0.842,3117.7,3117.2,0.001]
[1767914722051,4.04949326,3117.7,3117.2,0.001]
[1767914722345,7.66192757,3117.7,3117.2,0.001]
[1767914722706,8.56421395,3117.7,3117.2,0.001]
[1767914722905,8.56421395,3117.7,3116.9,0.92094081]
[1767914723327,5.35672069,3117.7,3116.9,4.12924427]
[1767914723532,5.35672069,3117.7,3117.0,0.92094081]
[1767914723706,0.85641228,3117.6,3117.0,0.92094081]
[1767914723907,5.35672069,3117.7,3117.0,0.92094081]
[1767914727924,4.04949326,3117.7,3117.0,0.92094081]
[1767914728550,0.842,3117.7,3117.1,0.92094081]
[1767914730108,0.001,3117.4,3117.1,0.92094081]
[1767914731944,0.001,3117.4,3117.2,0.92094081]
[1767914734312,0.001,3117.4,3117.0,3.20817657]
[1767914734515,0.001,3117.4,3117.0,5.05811543]
[1767914734944,0.001,3117.4,3117.0,1.84993886]
[1767914735149,0.001,3117.4,3117.0,0.91973209]
[1767914736649,0.001,3117.4,3117.0,4.12794329]
[1767914736946,0.001,3117.4,3117.1,0.91973209]
[1767914743552,0.001,3117.4,3117.0,0.002]
[1767914748679,0.001,3117.4,3117.0,0.92173209]
[1767914749953,0.001,3117.4,3117.0,0.002]
[1767914754564,0.94210248,3117.5,3117.3,0.002]
[1767914754861,1.72962592,3117.5,3117.0,0.002]
[1767914755665,0.78752344,3117.5,3117.0,0.002]
[1767914755864,5.00847664,3117.7,3117.0,0.002]
[1767914756566,0.95892737,3117.6,3117.0,0.002]
[1767914757363,0.95892737,3117.5,3117.0,0.002]
[1767914757728,0.95892737,3117.2,3116.8,0.002]
[1767914757962,2.8835098,3117.1,3116.8,0.002]
[1767914758135,0.46844372,3117.0,3116.8,0.002]
[1767914758349,0.842,3117.2,3116.8,0.002]
[1767914760138,1.80092737,3117.2,3116.8,0.002]
[1767914760747,0.842,3117.2,3116.8,0.002]
[1767914761071,2.8835098,3117.8,3116.8,0.002]
[1767914761072,0.842,3117.3,3116.8,0.92173209]
[1767914761256,3.20762716,3117.6,3116.9,0.91973209]
[1767914761460,0.842,3117.5,3117.0,0.91973209]
[1767914762976,0.842,3117.5,3116.8,0.96219995]
[1767914763181,1.81272406,3117.5,3116.8,0.96219995]
[1767914763380,3.20780137,3117.4,3116.8,0.96219995]
[1767914763589,5.02046204,3117.5,3116.8,4.17059942]
[1767914763739,0.842,3117.5,3116.8,4.17059942]
[1767914764062,0.842,3117.5,3116.9,0.96019995]
[1767914766662,0.842,3117.5,3117.2,0.002]
[1767914766969,1.70612668,3117.5,3117.2,0.002]
[1767914770069,4.91385032,3117.5,3117.2,0.002]
[1767914770271,5.85776091,3117.5,3117.2,0.002]
[1767914770565,5.85776091,3117.5,3116.9,0.002]
[1767914771274,1.70612668,3117.5,3116.9,0.91878703]
[1767914771842,4.91383113,3117.5,3116.9,0.91878703]
[1767914773569,0.842,3117.5,3116.9,0.91878703]
[1767914774075,0.842,3117.5,3117.0,0.91678703]
[1767914774392,4.04971684,3117.5,3117.0,0.91678703]
[1767914774585,4.04971684,3117.5,3116.9,0.002]
[1767914775490,0.842,3117.5,3116.9,0.002]
[1767914776980,4.04970547,3117.5,3116.9,0.002]
[1767914777376,0.842,3117.5,3116.9,0.002]
[1767914777575,0.842,3117.5,3116.9,0.91878703]
[1767914777948,4.04970573,3117.5,3116.9,0.91878703]
[1767914778242,4.86981738,3117.5,3116.9,0.91878703]
[1767914779777,0.001,3117.2,3116.9,0.91878703]
[1767914780792,0.001,3117.2,3116.9,0.002]
[1767914783674,0.001,3117.2,3116.9,0.91878703]
[1767914785088,0.83140919,3117.5,3116.9,0.91878703]
[1767914785782,0.83140919,3117.5,3117.0,0.91678703]
[1767914785982,3.20744641,3117.8,3117.1,0.91678703]
[1767914786183,0.842,3117.5,3117.1,0.91678703]
[1767914790199,0.842,3117.5,3117.1,4.12489697]
[1767914790382,0.842,3117.5,3117.2,0.91678703]
[1767914791402,0.842,3117.5,3117.2,0.91878703]
[1767914792671,2.8835098,3118.1,3117.3,0.97778055]
[1767914792672,4.13864225,3118.1,3117.3,0.97778055]
[1767914792863,0.842,3118.1,3117.3,0.97778055]
[1767914794794,0.842,3118.1,3117.5,0.97778055]
[1767914796987,0.842,3118.1,3117.6,0.97778055]
[1767914799182,0.842,3118.1,3117.6,4.1853698]
[1767914799382,0.84000001,3118.1,3117.6,0.97778055]
[1767914801309,4.97864284,3118.1,3117.4,0.97778055]
[1767914802213,4.97864284,3118.1,3117.4,4.18558076]
[1767914803212,0.002,3117.8,3117.4,4.18558076]
[1767914803511,0.002,3117.8,3117.5,0.41855808]
[1767914804915,0.002,3117.8,3117.5,3.62624785]
[1767914805111,0.002,3117.8,3117.6,0.97778055]
[1767914805316,0.002,3117.8,3117.5,3.62624785]
[1767914805506,0.002,3117.8,3117.5,3.20768977]
[1767914806096,0.002,3117.8,3117.4,4.18553264]
[1767914806299,0.002,3117.8,3117.4,5.21343476]
[1767914810715,0.002,3117.8,3117.2,0.97978055]
[1767914811016,0.84200001,3118.1,3117.5,0.97778055]
[1767914811218,0.842,3118.0,3117.7,0.97778055]
[1767914811519,0.002,3118.2,3117.8,0.97778055]
[1767914811721,0.842,3118.7,3118.0,0.97778055]
[1767914812105,4.04848273,3118.7,3118.0,0.97778055]
[1767914812416,3.2065794,3118.6,3118.0,0.97778055]
[1767914814427,0.842,3118.7,3118.0,4.18489005]
[1767914814591,0.842,3118.7,3118.0,4.92410718]
[1767914815134,4.04299538,3118.7,3118.0,1.71699768]
[1767914815502,4.9745564,3118.7,3118.0,1.71699768]
[1767914816462,0.002,3118.2,3118.0,1.71699768]
[1767914816600,0.002,3118.2,3118.0,0.73921713]
[1767914816806,0.002,3118.2,3117.7,0.97778055]
[1767914817019,0.002,3118.2,3117.7,4.18522495]
[1767914817306,0.002,3118.2,3117.2,6.0935578]
[1767914817307,0.93356102,3118.2,3117.3,3.20785448]
[1767914817941,0.93356102,3118.2,3117.3,3.20785614]
[1767914818427,0.93356102,3118.2,3117.3,4.03161791]
[1767914819930,0.93356102,3118.2,3117.2,0.002]
[1767914819931,0.93156102,3118.0,3117.2,0.002]
[1767914820133,0.93156102,3118.0,3117.4,1.9]
[1767914821513,3.20898236,3118.2,3117.4,1.9]
[1767914821806,0.002,3118.2,3117.5,0.97778055]
[1767914822006,0.002,3118.2,3117.6,0.97778055]
[1767914825341,0.002,3118.2,3117.6,4.18536798]
[1767914828236,0.002,3118.2,3117.9,0.001]
[1767914828735,0.002,3118.2,3117.9,0.93082611]
[1767914829512,6.46,3118.4,3117.9,3.8144463]
[1767914829729,6.46,3118.4,3117.9,1.31227074]
[1767914830021,9.66678118,3118.4,3117.9,0.93082611]
[1767914830321,0.90758517,3118.2,3117.9,0.001]
[1767914832416,4.11456873,3118.2,3117.9,0.001]
[1767914833756,0.90758517,3118.1,3117.9,0.001]
[1767914834657,3.20698356,3118.2,3117.9,0.001]
[1767914834857,4.58511855,3118.2,3117.4,4.1375753]
[1767914835054,0.90758517,3118.1,3117.2,0.93182611]
[1767914835276,0.90758517,3118.1,3117.2,4.13979642]
[1767914835429,10.6757223,3118.2,3117.3,0.92982611]
[1767914835631,3.20718409,3118.0,3117.3,0.92982611]
[1767914835943,3.20718409,3118.0,3117.5,2.3]
[1767914836270,3.20718409,3118.0,3117.4,0.92982611]
[1767914837928,3.20718409,3118.0,3117.3,0.92982611]
[1767914838162,1.15833075,3118.1,3117.3,0.92982611]
[1767914838362,1.37813499,3118.2,3117.5,0.92982611]
[1767914839966,9.66683601,3118.4,3117.6,0.92982611]
[1767914840860,9.66683601,3118.4,3117.8,0.92982611]
[1767914843666,6.46,3118.4,3117.9,0.92982611]
[1767914844758,3.20867683,3118.5,3117.9,0.92982611]
[1767914845338,0.002,3118.5,3117.9,0.92982611]
[1767914845771,3.20368143,3118.6,3118.0,0.92982611]
[1767914846140,4.04851186,3118.7,3118.0,0.92982611]
[1767914846353,7.25502372,3118.7,3118.0,0.92982611]
[1767914847669,3.79120536,3118.6,3117.8,0.92982611]
[1767914847971,0.90758517,3118.5,3117.7,2.3]
[1767914848768,0.90758517,3118.5,3117.7,3.22982611]
[1767914849353,3.2067727,3118.4,3117.7,3.22982611]
[1767914850658,6.4135454,3118.4,3117.7,3.22982611]
[1767914851273,0.002,3118.1,3117.7,3.22982611]
[1767914851847,0.90958517,3118.1,3117.7,2.3]
[1767914852578,3.81246347,3118.0,3117.3,0.92982611]